[Event "January 9 Early 2024"]
[Site "https://www.chess.com"]
[Date "2024.01.11"]
[Round "2"]
[White "Kohler, Aran"]
[Black "Boldoo, Erdenepurev"]
[Result "1-0"]
[Board "101"]
[TimeControl "180+1"]
[WhiteFideId "1002856"]
[BlackFideId "4901037"]
[WhiteElo "2255"]
[BlackElo "2548"]
[WhiteTeam "NED"]
[BlackTeam "MGL"]
[WhiteClock "0:00:26"]
[BlackClock "0:00:07"]

1. d4 {[%clk 0:03:00]}  Nf6 {[%clk 0:02:57]} 2. Nf3 {[%clk 0:02:59]}  g6 {[%clk 0:02:56]} 3. Bg5 {[%clk 0:02:59]}  Bg7 {[%clk 0:02:56]} 4. Nbd2 {[%clk 0:03:00]}  d5 {[%clk 0:02:54]} 5. e3 {[%clk 0:03:00]}  O-O {[%clk 0:02:33]} 6. Bd3 {[%clk 0:02:59]}  c5 {[%clk 0:02:24]} 7. c3 {[%clk 0:02:59]}  Nc6 {[%clk 0:02:24]} 8. h4 {[%clk 0:02:59]}  h5 {[%clk 0:02:23]} 9. dxc5 {[%clk 0:02:50]}  e5 {[%clk 0:02:09]} 10. e4 {[%clk 0:02:51]}  Be6 {[%clk 0:02:06]} 11. Qe2 {[%clk 0:02:47]}  Qe7 {[%clk 0:02:05]} 12. b4 {[%clk 0:02:10]}  Rad8 {[%clk 0:01:56]} 13. exd5 {[%clk 0:02:03]}  Bxd5 {[%clk 0:01:45]} 14. Ne4 {[%clk 0:02:03]}  Nxe4 {[%clk 0:01:12]} 15. Bxe7 {[%clk 0:01:58]}  Nxc3 {[%clk 0:01:11]} 16. Bxf8 {[%clk 0:00:55]}  Kxf8 {[%clk 0:00:58]} 17. Qe3 {[%clk 0:00:50]}  e4 {[%clk 0:00:56]} 18. O-O {[%clk 0:00:43]}  exf3 {[%clk 0:00:30]} 19. Rac1 {[%clk 0:00:33]}  fxg2 {[%clk 0:00:24]} 20. Rfe1 {[%clk 0:00:32]}  Be6 {[%clk 0:00:17]} 21. Bxg6 {[%clk 0:00:30]}  Nd5 {[%clk 0:00:15]} 22. Qg5 {[%clk 0:00:29]}  Nd4 {[%clk 0:00:07]} 23. Qxd8# {[%clk 0:00:26]} 1-0

[Event "January 9 Early 2024"]
[Site "https://www.chess.com"]
[Date "2024.01.11"]
[Round "2"]
[White "Xu, Yi"]
[Black "Maltsevskaya, Aleksandra"]
[Result "1-0"]
[Board "102"]
[TimeControl "180+1"]
[WhiteFideId "8605564"]
[BlackFideId "24174041"]
[WhiteElo "2865"]
[BlackElo "2576"]
[WhiteTeam "CHN"]
[BlackTeam "POL"]
[WhiteClock "0:00:46"]
[BlackClock "0:00:01"]

1. e4 {[%clk 0:03:00]}  c6 {[%clk 0:02:45]} 2. d4 {[%clk 0:03:00]}  d5 {[%clk 0:02:46]} 3. e5 {[%clk 0:03:00]}  Bf5 {[%clk 0:02:45]} 4. h4 {[%clk 0:02:59]}  h5 {[%clk 0:02:46]} 5. Bd3 {[%clk 0:02:59]}  Bxd3 {[%clk 0:02:46]} 6. Qxd3 {[%clk 0:03:00]}  Qa5+ {[%clk 0:02:46]} 7. Nd2 {[%clk 0:02:59]}  e6 {[%clk 0:02:46]} 8. Ne2 {[%clk 0:02:59]}  c5 {[%clk 0:02:46]} 9. O-O {[%clk 0:02:48]}  Nc6 {[%clk 0:02:32]} 10. Nf3 {[%clk 0:02:34]}  c4 {[%clk 0:02:20]} 11. Qd1 {[%clk 0:02:27]}  Nge7 {[%clk 0:02:18]} 12. Ng3 {[%clk 0:02:25]}  Ng6 {[%clk 0:02:17]} 13. Bg5 {[%clk 0:02:20]}  Be7 {[%clk 0:02:10]} 14. c3 {[%clk 0:02:18]}  Bxg5 {[%clk 0:02:08]} 15. Nxg5 {[%clk 0:02:13]}  Nxh4 {[%clk 0:01:59]} 16. Nxh5 {[%clk 0:02:13]}  g6 {[%clk 0:01:38]} 17. Nf6+ {[%clk 0:02:08]}  Ke7 {[%clk 0:01:37]} 18. g3 {[%clk 0:01:41]}  Nf5 {[%clk 0:01:31]} 19. Kg2 {[%clk 0:01:41]}  b5 {[%clk 0:00:55]} 20. a3 {[%clk 0:01:41]}  Qb6 {[%clk 0:00:53]} 21. Rh1 {[%clk 0:01:40]}  a5 {[%clk 0:00:47]} 22. Qf3 {[%clk 0:01:31]}  Raf8 {[%clk 0:00:23]} 23. Qxd5 {[%clk 0:01:17]}  Rd8 {[%clk 0:00:03]} 24. Qf3 {[%clk 0:01:06]}  b4 {[%clk 0:00:02]} 25. axb4 {[%clk 0:01:05]}  axb4 {[%clk 0:00:03]} 26. Nfe4 {[%clk 0:00:50]}  b3 {[%clk 0:00:01]} 27. g4 {[%clk 0:00:46]} 1-0

[Event "January 9 Early 2024"]
[Site "https://www.chess.com"]
[Date "2024.01.11"]
[Round "2"]
[White "Delgado Kuffo, Andres"]
[Black "Kopczynski, Michal"]
[Result "0-1"]
[Board "103"]
[TimeControl "180+1"]
[WhiteFideId "3600475"]
[BlackFideId "1124200"]
[WhiteElo "2305"]
[BlackElo "2524"]
[WhiteTeam "ECU"]
[BlackTeam "POL"]
[WhiteClock "0:00:03"]
[BlackClock "0:01:17"]

1. e4 {[%clk 0:03:00]}  b6 {[%clk 0:03:00]} 2. d4 {[%clk 0:03:00]}  Bb7 {[%clk 0:03:00]} 3. Bd3 {[%clk 0:02:59]}  e6 {[%clk 0:03:01]} 4. Nf3 {[%clk 0:02:57]}  Nf6 {[%clk 0:03:01]} 5. Qe2 {[%clk 0:02:56]}  d5 {[%clk 0:03:02]} 6. e5 {[%clk 0:02:54]}  Nfd7 {[%clk 0:03:02]} 7. O-O {[%clk 0:02:51]}  c5 {[%clk 0:03:02]} 8. c3 {[%clk 0:02:50]}  Nc6 {[%clk 0:03:03]} 9. a3 {[%clk 0:02:47]}  Qc7 {[%clk 0:03:04]} 10. b4 {[%clk 0:02:41]}  c4 {[%clk 0:03:04]} 11. Bc2 {[%clk 0:02:40]}  h6 {[%clk 0:03:04]} 12. h4 {[%clk 0:02:36]}  O-O-O {[%clk 0:03:04]} 13. h5 {[%clk 0:02:33]}  Re8 {[%clk 0:03:04]} 14. Bf4 {[%clk 0:02:31]}  f6 {[%clk 0:03:02]} 15. Bg6 {[%clk 0:02:27]}  Rd8 {[%clk 0:02:59]} 16. Bg3 {[%clk 0:02:06]}  fxe5 {[%clk 0:02:58]} 17. dxe5 {[%clk 0:02:03]}  Be7 {[%clk 0:02:47]} 18. Nbd2 {[%clk 0:01:35]}  Nf8 {[%clk 0:02:32]} 19. Bc2 {[%clk 0:01:24]}  Rg8 {[%clk 0:02:33]} 20. a4 {[%clk 0:01:06]}  g6 {[%clk 0:02:32]} 21. hxg6 {[%clk 0:01:05]}  Nxg6 {[%clk 0:02:33]} 22. a5 {[%clk 0:01:04]}  b5 {[%clk 0:02:33]} 23. a6 {[%clk 0:01:01]}  Ba8 {[%clk 0:02:32]} 24. Bxg6 {[%clk 0:00:58]}  Rxg6 {[%clk 0:02:32]} 25. Nh4 {[%clk 0:00:56]}  Rgg8 {[%clk 0:02:25]} 26. Qh5 {[%clk 0:00:54]}  d4 {[%clk 0:01:42]} 27. Qxh6 {[%clk 0:00:49]}  dxc3 {[%clk 0:01:39]} 28. Qxe6+ {[%clk 0:00:48]}  Kb8 {[%clk 0:01:38]} 29. Ne4 {[%clk 0:00:43]}  Nd4 {[%clk 0:01:31]} 30. Qxg8 {[%clk 0:00:21]}  Rxg8 {[%clk 0:01:28]} 31. e6 {[%clk 0:00:21]}  Ne2+ {[%clk 0:01:28]} 32. Kh2 {[%clk 0:00:19]}  Nxg3 {[%clk 0:01:28]} 33. fxg3 {[%clk 0:00:17]}  Bxe4 {[%clk 0:01:27]} 34. Rf4 {[%clk 0:00:16]}  Qxf4 {[%clk 0:01:24]} 35. gxf4 {[%clk 0:00:15]}  Bxh4 {[%clk 0:01:25]} 36. Kh3 {[%clk 0:00:13]}  Be7 {[%clk 0:01:21]} 37. g4 {[%clk 0:00:10]}  Bxb4 {[%clk 0:01:18]} 38. f5 {[%clk 0:00:06]}  Be7 {[%clk 0:01:18]} 39. Re1 {[%clk 0:00:04]}  c2 {[%clk 0:01:17]} 40. Kg3 {[%clk 0:00:03]}  Bg5 {[%clk 0:01:17]} 0-1

[Event "January 9 Early 2024"]
[Site "https://www.chess.com"]
[Date "2024.01.11"]
[Round "2"]
[White "Fernandez Guillen, Ernesto J."]
[Black "Ljukin, Sergei"]
[Result "1-0"]
[Board "108"]
[TimeControl "180+1"]
[WhiteFideId "3512428"]
[BlackFideId "14102200"]
[WhiteElo "2792"]
[BlackElo "2536"]
[WhiteTeam "CUB"]
[BlackTeam "UKR"]
[WhiteClock "0:00:37"]
[BlackClock "0:00:08"]

1. e4 {[%clk 0:03:00]}  e6 {[%clk 0:03:00]} 2. Nf3 {[%clk 0:03:00]}  d5 {[%clk 0:03:00]} 3. Nc3 {[%clk 0:03:00]}  Nf6 {[%clk 0:03:00]} 4. e5 {[%clk 0:03:00]}  Nfd7 {[%clk 0:03:01]} 5. d4 {[%clk 0:03:01]}  c5 {[%clk 0:03:01]} 6. Ne2 {[%clk 0:03:02]}  cxd4 {[%clk 0:03:01]} 7. Nexd4 {[%clk 0:03:03]}  Nc6 {[%clk 0:03:01]} 8. Nxc6 {[%clk 0:03:04]}  bxc6 {[%clk 0:03:01]} 9. Bd3 {[%clk 0:03:04]}  f6 {[%clk 0:03:01]} 10. O-O {[%clk 0:03:05]}  fxe5 {[%clk 0:02:58]} 11. Ng5 {[%clk 0:02:32]}  Nf6 {[%clk 0:02:50]} 12. Bxh7 {[%clk 0:02:23]}  Nxh7 {[%clk 0:02:32]} 13. Qh5+ {[%clk 0:02:21]}  Kd7 {[%clk 0:02:31]} 14. Nxh7 {[%clk 0:02:15]}  Be7 {[%clk 0:02:08]} 15. Qg6 {[%clk 0:02:10]}  Qg8 {[%clk 0:01:25]} 16. Ng5 {[%clk 0:02:03]}  Rh6 {[%clk 0:01:05]} 17. Qd3 {[%clk 0:01:59]}  e4 {[%clk 0:01:00]} 18. Nxe4 {[%clk 0:01:45]}  Qh7 {[%clk 0:00:55]} 19. Bxh6 {[%clk 0:01:43]}  Qxh6 {[%clk 0:00:52]} 20. Rad1 {[%clk 0:01:41]}  a5 {[%clk 0:00:50]} 21. Rfe1 {[%clk 0:01:37]}  Ba6 {[%clk 0:00:46]} 22. Qc3 {[%clk 0:01:33]}  Rh8 {[%clk 0:00:41]} 23. h3 {[%clk 0:01:33]}  Bb4 {[%clk 0:00:33]} 24. Nc5+ {[%clk 0:01:08]}  Kd6 {[%clk 0:00:22]} 25. Qe5+ {[%clk 0:00:38]}  Kxc5 {[%clk 0:00:21]} 26. c3 {[%clk 0:00:39]}  Re8 {[%clk 0:00:15]} 27. cxb4+ {[%clk 0:00:39]}  axb4 {[%clk 0:00:14]} 28. Qc7 {[%clk 0:00:37]}  e5 {[%clk 0:00:08]} 29. Rc1+ {[%clk 0:00:36]}  Kb5 {[%clk 0:00:08]} 30. a4+ {[%clk 0:00:37]}  bxa3 {[%clk 0:00:08]} 31. bxa3 {[%clk 0:00:37]} 1-0

[Event "January 9 Early 2024"]
[Site "https://www.chess.com"]
[Date "2024.01.11"]
[Round "2"]
[White "Khripachenko, Alexander"]
[Black "Belov, Alexei"]
[Result "1-0"]
[Board "110"]
[TimeControl "180+1"]
[WhiteFideId "54184975"]
[BlackFideId "4128206"]
[WhiteElo "2825"]
[BlackElo "2547"]
[WhiteTeam "FID"]
[BlackTeam "RUS"]
[WhiteClock "0:00:53"]
[BlackClock "0:00:03"]

1. e4 {[%clk 0:02:59]}  e6 {[%clk 0:03:00]} 2. d4 {[%clk 0:02:57]}  d5 {[%clk 0:03:00]} 3. Nd2 {[%clk 0:02:51]}  Nf6 {[%clk 0:03:00]} 4. e5 {[%clk 0:02:50]}  Nfd7 {[%clk 0:03:00]} 5. f4 {[%clk 0:02:51]}  c5 {[%clk 0:03:00]} 6. c3 {[%clk 0:02:50]}  Nc6 {[%clk 0:03:00]} 7. Ndf3 {[%clk 0:02:49]}  Qb6 {[%clk 0:03:01]} 8. a3 {[%clk 0:02:42]}  a5 {[%clk 0:02:55]} 9. b3 {[%clk 0:02:41]}  Be7 {[%clk 0:02:54]} 10. Be3 {[%clk 0:02:40]}  f6 {[%clk 0:02:41]} 11. Bd3 {[%clk 0:02:21]}  cxd4 {[%clk 0:02:40]} 12. cxd4 {[%clk 0:02:20]}  fxe5 {[%clk 0:02:28]} 13. fxe5 {[%clk 0:02:20]}  Ndxe5 {[%clk 0:02:26]} 14. Nxe5 {[%clk 0:02:20]}  Nxe5 {[%clk 0:02:27]} 15. Qh5+ {[%clk 0:02:20]}  Nf7 {[%clk 0:02:27]} 16. Ne2 {[%clk 0:02:18]}  Qxb3 {[%clk 0:02:20]} 17. O-O {[%clk 0:02:04]}  g6 {[%clk 0:02:18]} 18. Qf3 {[%clk 0:01:56]}  O-O {[%clk 0:02:11]} 19. Nf4 {[%clk 0:01:42]}  Ng5 {[%clk 0:00:58]} 20. Qe2 {[%clk 0:01:40]}  Qb6 {[%clk 0:00:49]} 21. Nxg6 {[%clk 0:01:28]}  hxg6 {[%clk 0:00:44]} 22. Bxg6 {[%clk 0:01:25]}  Bd7 {[%clk 0:00:20]} 23. Qh5 {[%clk 0:01:17]}  Rxf1+ {[%clk 0:00:16]} 24. Rxf1 {[%clk 0:01:17]}  Rf8 {[%clk 0:00:17]} 25. Rxf8+ {[%clk 0:01:15]}  Bxf8 {[%clk 0:00:14]} 26. Qxg5 {[%clk 0:01:15]}  Bg7 {[%clk 0:00:13]} 27. Qe7 {[%clk 0:01:12]}  Qc6 {[%clk 0:00:04]} 28. Qf7+ {[%clk 0:01:12]}  Kh8 {[%clk 0:00:03]} 29. Bh6 {[%clk 0:00:57]}  Bxd4+ {[%clk 0:00:03]} 30. Kh1 {[%clk 0:00:55]}  Qc5 {[%clk 0:00:03]} 31. Qh7# {[%clk 0:00:53]} 1-0

[Event "January 9 Early 2024"]
[Site "https://www.chess.com"]
[Date "2024.01.11"]
[Round "2"]
[White "Niedbala, Bartlomiej"]
[Black "Aronian, Levon"]
[Result "0-1"]
[Board "111"]
[TimeControl "180+1"]
[WhiteFideId "21834008"]
[BlackFideId "13300474"]
[WhiteElo "2677"]
[BlackElo "3094"]
[WhiteTeam "POL"]
[BlackTeam "USA"]
[WhiteClock "0:00:04"]
[BlackClock "0:00:29"]

1. e4 {[%clk 0:03:00]}  c5 {[%clk 0:02:59]} 2. Nf3 {[%clk 0:03:01]}  e6 {[%clk 0:03:00]} 3. d4 {[%clk 0:03:01]}  cxd4 {[%clk 0:03:00]} 4. Nxd4 {[%clk 0:03:02]}  Nc6 {[%clk 0:03:01]} 5. Nc3 {[%clk 0:03:02]}  Qc7 {[%clk 0:03:01]} 6. Be3 {[%clk 0:02:59]}  a6 {[%clk 0:03:01]} 7. Qf3 {[%clk 0:02:59]}  Nf6 {[%clk 0:02:59]} 8. O-O-O {[%clk 0:02:58]}  Ne5 {[%clk 0:02:58]} 9. Qg3 {[%clk 0:02:59]}  h5 {[%clk 0:02:58]} 10. h4 {[%clk 0:02:41]}  b5 {[%clk 0:02:47]} 11. Bf4 {[%clk 0:02:05]}  d6 {[%clk 0:02:47]} 12. Bxe5 {[%clk 0:01:59]}  dxe5 {[%clk 0:02:46]} 13. Bxb5+ {[%clk 0:02:00]}  axb5 {[%clk 0:02:42]} 14. Ncxb5 {[%clk 0:01:59]}  Qc5 {[%clk 0:02:34]} 15. b4 {[%clk 0:01:59]}  Qc4 {[%clk 0:01:45]} 16. Qxe5 {[%clk 0:01:41]}  Bxb4 {[%clk 0:01:45]} 17. Nc7+ {[%clk 0:01:19]}  Kf8 {[%clk 0:01:45]} 18. Nxa8 {[%clk 0:01:15]}  Qxa2 {[%clk 0:01:08]} 19. Nc6 {[%clk 0:00:36]}  Nd7 {[%clk 0:00:41]} 20. Rxd7 {[%clk 0:00:24]}  Ba3+ {[%clk 0:00:37]} 21. Kd2 {[%clk 0:00:18]}  Bxd7 {[%clk 0:00:38]} 22. Qb8+ {[%clk 0:00:15]}  Be8 {[%clk 0:00:38]} 23. Nc7 {[%clk 0:00:15]}  Kg8 {[%clk 0:00:35]} 24. Qxe8+ {[%clk 0:00:11]}  Kh7 {[%clk 0:00:35]} 25. Qxf7 {[%clk 0:00:12]}  Rf8 {[%clk 0:00:35]} 26. Qxh5+ {[%clk 0:00:11]}  Kg8 {[%clk 0:00:36]} 27. Ne7+ {[%clk 0:00:10]}  Bxe7 {[%clk 0:00:35]} 28. Nxe6 {[%clk 0:00:04]}  Qxe6 {[%clk 0:00:29]} 0-1

[Event "January 9 Early 2024"]
[Site "https://www.chess.com"]
[Date "2024.01.11"]
[Round "2"]
[White "Terry, Renato"]
[Black "Smirnov, Alexandr A."]
[Result "0-1"]
[Board "112"]
[TimeControl "180+1"]
[WhiteFideId "3803457"]
[BlackFideId "24104396"]
[WhiteElo "2979"]
[BlackElo "2667"]
[WhiteTeam "PER"]
[BlackTeam "RUS"]
[WhiteClock "0:01:12"]
[BlackClock "0:00:15"]

1. d4 {[%clk 0:02:59]}  Nf6 {[%clk 0:02:59]} 2. Bg5 {[%clk 0:02:58]}  c5 {[%clk 0:02:59]} 3. dxc5 {[%clk 0:02:57]}  Qa5+ {[%clk 0:02:55]} 4. Nd2 {[%clk 0:02:57]}  Qxc5 {[%clk 0:02:55]} 5. e3 {[%clk 0:02:57]}  Qxg5 {[%clk 0:02:52]} 6. Ngf3 {[%clk 0:02:50]}  Qa5 {[%clk 0:02:52]} 7. Bd3 {[%clk 0:02:50]}  Nc6 {[%clk 0:02:50]} 8. O-O {[%clk 0:02:49]}  g6 {[%clk 0:02:51]} 9. e4 {[%clk 0:02:48]}  d6 {[%clk 0:02:50]} 10. c3 {[%clk 0:02:48]}  Bg7 {[%clk 0:02:49]} 11. b4 {[%clk 0:02:48]}  Qc7 {[%clk 0:02:49]} 12. Nc4 {[%clk 0:02:48]}  Ne5 {[%clk 0:02:47]} 13. Nfxe5 {[%clk 0:02:45]}  dxe5 {[%clk 0:02:48]} 14. Ne3 {[%clk 0:02:44]}  Be6 {[%clk 0:02:47]} 15. Bb5+ {[%clk 0:02:42]}  Bd7 {[%clk 0:02:44]} 16. Bd3 {[%clk 0:02:40]}  O-O {[%clk 0:02:44]} 17. Rc1 {[%clk 0:02:41]}  Be6 {[%clk 0:02:37]} 18. Qe2 {[%clk 0:02:40]}  Rfd8 {[%clk 0:02:36]} 19. c4 {[%clk 0:02:40]}  Bh6 {[%clk 0:02:33]} 20. Rc3 {[%clk 0:02:38]}  Rd7 {[%clk 0:02:30]} 21. Nc2 {[%clk 0:02:22]}  Rad8 {[%clk 0:02:27]} 22. Na3 {[%clk 0:02:22]}  a6 {[%clk 0:02:26]} 23. c5 {[%clk 0:02:20]}  Rd4 {[%clk 0:01:50]} 24. Nc2 {[%clk 0:02:19]}  R4d7 {[%clk 0:01:47]} 25. Na3 {[%clk 0:02:19]}  Qc6 {[%clk 0:01:45]} 26. b5 {[%clk 0:02:19]}  Qc8 {[%clk 0:01:43]} 27. c6 {[%clk 0:02:17]}  bxc6 {[%clk 0:01:40]} 28. bxc6 {[%clk 0:02:10]}  Ra7 {[%clk 0:01:32]} 29. Rb1 {[%clk 0:02:09]}  Rd6 {[%clk 0:00:54]} 30. Qc2 {[%clk 0:02:08]}  Rc7 {[%clk 0:00:51]} 31. Rb6 {[%clk 0:02:06]}  Bd2 {[%clk 0:00:39]} 32. Bxa6 {[%clk 0:01:57]}  Qd8 {[%clk 0:00:35]} 33. Rd3 {[%clk 0:01:44]}  Ra7 {[%clk 0:00:32]} 34. Qxd2 {[%clk 0:01:28]}  Rxd3 {[%clk 0:00:27]} 35. Qxd3 {[%clk 0:01:25]}  Qxb6 {[%clk 0:00:22]} 36. Bb5 {[%clk 0:01:25]}  Rxa3 {[%clk 0:00:16]} 37. Qxa3 {[%clk 0:01:25]}  Qxb5 {[%clk 0:00:16]} 38. Qc1 {[%clk 0:01:24]}  Qc4 {[%clk 0:00:15]} 39. Qa1 {[%clk 0:01:18]}  Qxc6 {[%clk 0:00:14]} 40. f3 {[%clk 0:01:18]}  Nxe4 {[%clk 0:00:14]} 41. fxe4 {[%clk 0:01:16]}  Qxe4 {[%clk 0:00:15]} 42. Kh1 {[%clk 0:01:15]}  Bd5 {[%clk 0:00:14]} 43. Qf1 {[%clk 0:01:15]}  Bxa2 {[%clk 0:00:14]} 44. Kg1 {[%clk 0:01:14]}  Bd5 {[%clk 0:00:14]} 45. h3 {[%clk 0:01:14]}  f5 {[%clk 0:00:14]} 46. Kh2 {[%clk 0:01:12]}  f4 {[%clk 0:00:15]} 0-1

[Event "January 9 Early 2024"]
[Site "https://www.chess.com"]
[Date "2024.01.11"]
[Round "2"]
[White "Tarnowska, Aleksandra"]
[Black "Swicarz, Maciej"]
[Result "0-1"]
[Board "114"]
[TimeControl "180+1"]
[WhiteFideId "1180967"]
[BlackFideId "1113585"]
[WhiteElo "2202"]
[BlackElo "2477"]
[WhiteTeam "POL"]
[BlackTeam "POL"]
[WhiteClock "0:00:02"]
[BlackClock "0:01:12"]

1. e4 {[%clk 0:02:57]}  c5 {[%clk 0:02:59]} 2. Nf3 {[%clk 0:02:51]}  d6 {[%clk 0:02:59]} 3. Bb5+ {[%clk 0:02:51]}  Nd7 {[%clk 0:02:59]} 4. O-O {[%clk 0:02:50]}  a6 {[%clk 0:02:58]} 5. Bxd7+ {[%clk 0:02:45]}  Bxd7 {[%clk 0:02:59]} 6. Re1 {[%clk 0:02:42]}  e5 {[%clk 0:02:47]} 7. d3 {[%clk 0:02:40]}  Be7 {[%clk 0:02:45]} 8. Nbd2 {[%clk 0:02:41]}  f5 {[%clk 0:02:43]} 9. exf5 {[%clk 0:02:37]}  Bxf5 {[%clk 0:02:43]} 10. Ne4 {[%clk 0:02:30]}  Nf6 {[%clk 0:02:42]} 11. Ng3 {[%clk 0:02:23]}  Be6 {[%clk 0:02:36]} 12. Ng5 {[%clk 0:02:14]}  Bd5 {[%clk 0:02:29]} 13. Nf5 {[%clk 0:02:00]}  O-O {[%clk 0:02:20]} 14. c4 {[%clk 0:01:15]}  Bf7 {[%clk 0:02:18]} 15. Be3 {[%clk 0:00:50]}  Qd7 {[%clk 0:02:02]} 16. Nxe7+ {[%clk 0:00:44]}  Qxe7 {[%clk 0:02:03]} 17. Qf3 {[%clk 0:00:41]}  Bg6 {[%clk 0:01:58]} 18. Rad1 {[%clk 0:00:37]}  Kh8 {[%clk 0:01:55]} 19. Qh3 {[%clk 0:00:30]}  Rae8 {[%clk 0:01:46]} 20. Bc1 {[%clk 0:00:22]}  Nh5 {[%clk 0:01:43]} 21. Ne4 {[%clk 0:00:12]}  Nf4 {[%clk 0:01:38]} 22. Bxf4 {[%clk 0:00:11]}  Rxf4 {[%clk 0:01:39]} 23. Re3 {[%clk 0:00:09]}  Ref8 {[%clk 0:01:38]} 24. f3 {[%clk 0:00:07]}  b5 {[%clk 0:01:34]} 25. cxb5 {[%clk 0:00:06]}  axb5 {[%clk 0:01:34]} 26. Qg3 {[%clk 0:00:05]}  Qe6 {[%clk 0:01:28]} 27. a3 {[%clk 0:00:04]}  R4f7 {[%clk 0:01:19]} 28. Ng5 {[%clk 0:00:03]}  Qb3 {[%clk 0:01:19]} 29. Nxf7+ {[%clk 0:00:03]}  Rxf7 {[%clk 0:01:19]} 30. Qf2 {[%clk 0:00:04]}  Qxd1+ {[%clk 0:01:19]} 31. Re1 {[%clk 0:00:03]}  Qxd3 {[%clk 0:01:19]} 32. b4 {[%clk 0:00:03]}  Qd4 {[%clk 0:01:17]} 33. Qxd4 {[%clk 0:00:02]}  cxd4 {[%clk 0:01:17]} 34. Rc1 {[%clk 0:00:02]}  h6 {[%clk 0:01:16]} 35. Kf2 {[%clk 0:00:03]}  e4 {[%clk 0:01:15]} 36. Ke2 {[%clk 0:00:03]}  e3 {[%clk 0:01:15]} 37. Rc8+ {[%clk 0:00:03]}  Kh7 {[%clk 0:01:15]} 38. Rc6 {[%clk 0:00:03]}  Re7 {[%clk 0:01:15]} 39. Rxd6 {[%clk 0:00:03]}  d3+ {[%clk 0:01:15]} 40. Kd1 {[%clk 0:00:03]}  d2 {[%clk 0:01:13]} 41. Ke2 {[%clk 0:00:02]}  Bc2 {[%clk 0:01:13]} 42. Rd8 {[%clk 0:00:01]}  Bb3 {[%clk 0:01:11]} 43. g4 {[%clk 0:00:02]}  Bc4+ {[%clk 0:01:11]} 44. Kd1 {[%clk 0:00:02]}  e2+ {[%clk 0:01:12]} 45. Kxd2 {[%clk 0:00:02]}  e1=Q+ {[%clk 0:01:12]} 0-1

[Event "January 9 Early 2024"]
[Site "https://www.chess.com"]
[Date "2024.01.11"]
[Round "2"]
[White "Kantans, Toms"]
[Black "Khismatullin, Denis"]
[Result "0-1"]
[Board "115"]
[TimeControl "180+1"]
[WhiteFideId "11602945"]
[BlackFideId "4142578"]
[WhiteElo "2631"]
[BlackElo "2960"]
[WhiteTeam "LAT"]
[BlackTeam "RUS"]
[WhiteClock "0:00:04"]
[BlackClock "0:00:50"]

1. e4 {[%clk 0:03:00]}  c5 {[%clk 0:02:59]} 2. Nf3 {[%clk 0:03:00]}  d6 {[%clk 0:02:59]} 3. Bb5+ {[%clk 0:02:58]}  Nd7 {[%clk 0:02:58]} 4. a4 {[%clk 0:02:58]}  Nf6 {[%clk 0:02:57]} 5. Nc3 {[%clk 0:02:58]}  g6 {[%clk 0:02:55]} 6. a5 {[%clk 0:02:58]}  Bg7 {[%clk 0:02:54]} 7. O-O {[%clk 0:02:57]}  O-O {[%clk 0:02:55]} 8. d3 {[%clk 0:02:58]}  Nb8 {[%clk 0:02:51]} 9. a6 {[%clk 0:02:49]}  Nxa6 {[%clk 0:02:47]} 10. Bxa6 {[%clk 0:02:49]}  bxa6 {[%clk 0:02:47]} 11. Nd2 {[%clk 0:02:37]}  Nd7 {[%clk 0:02:40]} 12. Nc4 {[%clk 0:02:30]}  Nb6 {[%clk 0:02:39]} 13. Bd2 {[%clk 0:02:30]}  Nxc4 {[%clk 0:02:36]} 14. dxc4 {[%clk 0:02:31]}  Bb7 {[%clk 0:02:36]} 15. Qe2 {[%clk 0:02:27]}  Qd7 {[%clk 0:02:36]} 16. Ra2 {[%clk 0:02:19]}  f5 {[%clk 0:02:34]} 17. exf5 {[%clk 0:01:46]}  Rxf5 {[%clk 0:02:25]} 18. Nd5 {[%clk 0:01:43]}  Bxd5 {[%clk 0:02:07]} 19. cxd5 {[%clk 0:01:43]}  Rxd5 {[%clk 0:02:05]} 20. Rxa6 {[%clk 0:01:07]}  Qb7 {[%clk 0:02:05]} 21. b3 {[%clk 0:00:31]}  Kh8 {[%clk 0:01:58]} 22. Ra4 {[%clk 0:00:31]}  Rd4 {[%clk 0:01:50]} 23. Rfa1 {[%clk 0:00:26]}  Rxa4 {[%clk 0:01:37]} 24. Rxa4 {[%clk 0:00:26]}  a6 {[%clk 0:01:37]} 25. h4 {[%clk 0:00:24]}  Qd5 {[%clk 0:01:32]} 26. Bg5 {[%clk 0:00:21]}  e5 {[%clk 0:01:17]} 27. Rxa6 {[%clk 0:00:19]}  Rxa6 {[%clk 0:01:17]} 28. Qxa6 {[%clk 0:00:20]}  h6 {[%clk 0:01:16]} 29. Be7 {[%clk 0:00:17]}  Qd1+ {[%clk 0:01:14]} 30. Kh2 {[%clk 0:00:17]}  Qxc2 {[%clk 0:01:12]} 31. Qxd6 {[%clk 0:00:17]}  Qxf2 {[%clk 0:01:09]} 32. Qxc5 {[%clk 0:00:13]}  Qf4+ {[%clk 0:01:06]} 33. Kh1 {[%clk 0:00:14]}  e4 {[%clk 0:01:03]} 34. b4 {[%clk 0:00:10]}  e3 {[%clk 0:01:01]} 35. Qc8+ {[%clk 0:00:10]}  Kh7 {[%clk 0:01:00]} 36. Qe6 {[%clk 0:00:09]}  Be5 {[%clk 0:00:51]} 37. g3 {[%clk 0:00:04]}  Qf3+ {[%clk 0:00:50]} 0-1

[Event "January 9 Early 2024"]
[Site "https://www.chess.com"]
[Date "2024.01.11"]
[Round "2"]
[White "Domalchuk-Jonasson, Aleksandr"]
[Black "Bjerre, Jonas Buhl"]
[Result "0-1"]
[Board "116"]
[TimeControl "180+1"]
[WhiteFideId "14142805"]
[BlackFideId "1444948"]
[WhiteElo "2626"]
[BlackElo "2956"]
[WhiteTeam "ISL"]
[BlackTeam "DEN"]
[WhiteClock "0:00:29"]
[BlackClock "0:00:13"]

1. d4 {[%clk 0:03:00]}  Nf6 {[%clk 0:02:59]} 2. c4 {[%clk 0:03:01]}  e6 {[%clk 0:03:00]} 3. Nc3 {[%clk 0:03:01]}  Bb4 {[%clk 0:02:59]} 4. Qc2 {[%clk 0:03:01]}  c5 {[%clk 0:02:55]} 5. dxc5 {[%clk 0:03:00]}  Na6 {[%clk 0:02:54]} 6. Nf3 {[%clk 0:03:00]}  Nxc5 {[%clk 0:02:50]} 7. a3 {[%clk 0:03:00]}  Bxc3+ {[%clk 0:02:50]} 8. Qxc3 {[%clk 0:03:01]}  a5 {[%clk 0:02:46]} 9. b3 {[%clk 0:02:47]}  Qb6 {[%clk 0:02:32]} 10. Rb1 {[%clk 0:02:24]}  O-O {[%clk 0:02:23]} 11. Be3 {[%clk 0:01:51]}  Qc7 {[%clk 0:02:10]} 12. g3 {[%clk 0:01:49]}  b6 {[%clk 0:02:06]} 13. Bg2 {[%clk 0:01:48]}  Bb7 {[%clk 0:02:05]} 14. O-O {[%clk 0:01:49]}  d5 {[%clk 0:02:00]} 15. Rfd1 {[%clk 0:01:44]}  dxc4 {[%clk 0:01:50]} 16. Qxc4 {[%clk 0:01:41]}  Bd5 {[%clk 0:01:45]} 17. Qb5 {[%clk 0:01:30]}  Nfe4 {[%clk 0:01:31]} 18. Rbc1 {[%clk 0:01:21]}  Nd6 {[%clk 0:01:06]} 19. Qd3 {[%clk 0:00:43]}  h6 {[%clk 0:00:28]} 20. b4 {[%clk 0:00:42]}  axb4 {[%clk 0:00:24]} 21. axb4 {[%clk 0:00:43]}  Nxd3 {[%clk 0:00:23]} 22. Rxc7 {[%clk 0:00:43]}  Nb2 {[%clk 0:00:17]} 23. Rb1 {[%clk 0:00:35]}  Nbc4 {[%clk 0:00:17]} 24. Bd4 {[%clk 0:00:34]}  Nb5 {[%clk 0:00:17]} 25. Rd7 {[%clk 0:00:33]}  Rad8 {[%clk 0:00:13]} 26. Rxd8 {[%clk 0:00:33]}  Rxd8 {[%clk 0:00:14]} 27. e3 {[%clk 0:00:30]}  Bxf3 {[%clk 0:00:14]} 28. Bxf3 {[%clk 0:00:29]}  Nxd4 {[%clk 0:00:12]} 29. exd4 {[%clk 0:00:29]}  Nd2 {[%clk 0:00:13]} 0-1